bitfinex/quotes_BTCUSD_20250608
["timestamp","ask_amount","ask_price","bid_price","bid_amount"]
[1749342457406,0.09738638,105630.0,105620.0,0.73988868]
[1749342457619,0.10685284,105630.0,105620.0,0.73988868]
[1749342457835,0.11631939,105630.0,105620.0,0.38487815]
[1749342458050,0.11631939,105630.0,105620.0,0.39434542]
[1749342458513,0.11631939,105630.0,105620.0,0.42268697]
[1749342460250,0.12578612,105630.0,105620.0,0.42268697]
[1749342460719,0.11631939,105630.0,105620.0,0.42268697]
[1749342460920,0.12578612,105630.0,105620.0,0.40628697]
[1749342461137,0.60747939,105630.0,105620.0,0.39048697]
[1749342461844,0.60747948,105630.0,105620.0,0.40628697]
[1749342463234,0.60747939,105630.0,105620.0,0.40628697]
[1749342465641,0.59801284,105630.0,105620.0,0.40628697]
[1749342469079,0.59801284,105630.0,105620.0,0.39048697]
[1749342469279,0.58854638,105630.0,105620.0,0.39048697]
[1749342469480,0.58854638,105630.0,105620.0,0.36214542]
[1749342470960,0.59801293,105630.0,105620.0,0.36214542]
[1749342471137,0.58854638,105630.0,105620.0,0.36214542]
[1749342471811,0.59801293,105630.0,105620.0,0.36214542]
[1749342472031,0.59801284,105630.0,105620.0,0.36214542]
[1749342472231,0.62317939,105630.0,105620.0,0.36214542]
[1749342472501,0.63877939,105630.0,105620.0,0.36214542]
[1749342472677,0.62317939,105630.0,105620.0,0.36214542]
[1749342472837,0.61371284,105630.0,105620.0,0.36214542]
[1749342473050,0.61371293,105630.0,105620.0,0.36214542]
[1749342473273,0.59801293,105630.0,105620.0,0.36214542]
[1749342476362,0.59801293,105630.0,105620.0,0.41888868]
[1749342477279,0.60747957,105630.0,105620.0,0.41888868]
[1749342477506,0.59801293,105630.0,105620.0,0.41888868]
[1749342478211,0.60747966,105630.0,105620.0,0.41888868]
[1749342478854,0.59801293,105630.0,105620.0,0.41888868]
[1749342479030,0.60747966,105630.0,105620.0,0.41888868]
[1749342479479,0.59801293,105630.0,105620.0,0.41888868]
[1749342480474,0.60747966,105630.0,105620.0,0.41888868]
[1749342480782,0.59801293,105630.0,105620.0,0.41888868]
[1749342481362,0.60747975,105630.0,105620.0,0.41888868]
[1749342481555,0.61694648,105630.0,105620.0,0.41888868]
[1749342481730,0.61694639,105630.0,105620.0,0.41888868]
[1749342481929,0.6169463,105630.0,105620.0,0.41888868]
[1749342483318,0.62641312,105630.0,105620.0,0.41888868]
[1749342484014,0.64241312,105630.0,105620.0,0.41888868]
[1749342487054,0.64241312,105630.0,105620.0,0.41868405]
[1749342487467,0.62641312,105630.0,105620.0,0.41868405]
[1749342487669,0.62641365,105630.0,105620.0,0.41868405]
[1749342488100,0.61694674,105630.0,105620.0,0.41868405]
[1749342490828,0.60747992,105630.0,105620.0,0.41868405]
[1749342491036,0.61694674,105630.0,105620.0,0.41868405]
[1749342494650,0.60747992,105630.0,105620.0,0.41868405]
[1749342494871,0.61694674,105630.0,105620.0,0.41868405]
[1749342495396,0.61410272,105630.0,105620.0,0.41868405]
[1749342502207,0.61410272,105630.0,105620.0,0.41726512]
[1749342502934,0.63183312,105630.0,105620.0,0.41726512]
[1749342503385,0.61410272,105630.0,105620.0,0.41726512]
[1749342503729,0.63183307,105630.0,105620.0,0.41726512]
[1749342504085,0.63183309,105630.0,105620.0,0.41726512]
[1749342504701,0.63183322,105630.0,105620.0,0.41726512]
[1749342504927,0.61410272,105630.0,105620.0,0.41726512]
[1749342505174,0.63183327,105630.0,105620.0,0.41726512]
[1749342505375,0.63183318,105630.0,105620.0,0.41726512]
[1749342506295,0.63183324,105630.0,105620.0,0.41726512]
[1749342506588,0.63183387,105630.0,105620.0,0.41726512]
[1749342506789,0.62236705,105630.0,105620.0,0.41726512]
[1749342506990,0.6046359,105630.0,105620.0,0.41726512]
[1749342507399,0.62236705,105630.0,105620.0,0.41726512]
[1749342508322,0.62236704,105630.0,105620.0,0.41726512]
[1749342508627,0.6046359,105630.0,105620.0,0.41726512]
[1749342508868,0.62236704,105630.0,105620.0,0.41726512]
[1749342509285,0.62236724,105630.0,105620.0,0.41726512]
[1749342509473,0.62236722,105630.0,105620.0,0.41726512]
[1749342509885,0.62236726,105630.0,105620.0,0.41726512]
[1749342510083,0.62236911,105630.0,105620.0,0.41726512]
[1749342510752,0.62236904,105630.0,105620.0,0.41726512]
[1749342511284,0.61290222,105630.0,105620.0,0.41726512]
[1749342511496,0.62236912,105630.0,105620.0,0.41726512]
[1749342511716,0.6223691,105630.0,105620.0,0.41726512]
[1749342512352,0.60463599,105630.0,105620.0,0.41726512]
[1749342512589,0.62236902,105630.0,105620.0,0.41726512]
[1749342512803,0.60463599,105630.0,105620.0,0.41726512]
[1749342513014,0.62236905,105630.0,105620.0,0.41726512]
[1749342513254,0.62236911,105630.0,105620.0,0.41726512]
[1749342513459,0.60463599,105630.0,105620.0,0.41726512]
[1749342513666,0.62236916,105630.0,105620.0,0.41726512]
[1749342513895,0.62236917,105630.0,105620.0,0.41726512]
[1749342515082,0.60463599,105630.0,105620.0,0.41726512]
[1749342515221,0.6223692,105630.0,105620.0,0.41726512]
[1749342516227,0.62236918,105630.0,105620.0,0.41726512]
[1749342516438,0.62236917,105630.0,105620.0,0.41726512]
[1749342516711,0.59516917,105630.0,105620.0,0.41726512]
[1749342516927,0.62236912,105630.0,105620.0,0.41726512]
[1749342517144,0.62521314,105630.0,105620.0,0.41726512]
[1749342517351,0.62521333,105630.0,105620.0,0.41726512]
[1749342517553,0.60748001,105630.0,105620.0,0.41726512]
[1749342518610,0.59801319,105630.0,105620.0,0.41726512]
[1749342518831,0.59801319,105630.0,105620.0,0.34546338]
[1749342518832,0.59801284,105630.0,105620.0,0.34546338]
[1749342519724,0.59801284,105630.0,105620.0,0.42103257]
[1749342520784,0.59801284,105630.0,105620.0,0.34546338]
[1749342523213,0.60747957,105630.0,105620.0,0.34546338]
[1749342523844,0.59801284,105630.0,105620.0,0.34546338]
[1749342524296,0.60747948,105630.0,105620.0,0.34546338]
[1749342524923,0.60747948,105630.0,105620.0,0.40229825]
[1749342525811,0.60747957,105630.0,105620.0,0.40229825]
[1749342526224,0.59801284,105630.0,105620.0,0.40229825]
[1749342526883,0.60747957,105630.0,105620.0,0.40229825]
[1749342527711,0.60747948,105630.0,105620.0,0.40229825]
[1749342528771,0.6169463,105630.0,105620.0,0.40229825]
[1749342528981,0.60747948,105630.0,105620.0,0.40229825]
[1749342530878,0.61694621,105630.0,105620.0,0.40229825]
[1749342531082,0.60747948,105630.0,105620.0,0.40229825]
[1749342531279,0.58854629,105630.0,105620.0,0.40229825]
[1749342531484,0.59801275,105630.0,105620.0,0.40229825]
[1749342531916,0.54117367,105630.0,105620.0,0.42103257]
[1749342532854,0.54117359,105630.0,105620.0,0.42103257]
[1749342533066,0.53170721,105630.0,105620.0,0.42103257]
[1749342533471,0.54117367,105630.0,105620.0,0.42103257]
[1749342535828,0.53170721,105630.0,105620.0,0.42103257]
[1749342536372,0.54117367,105630.0,105620.0,0.42103257]
[1749342537802,0.54117359,105630.0,105620.0,0.42103257]
[1749342541128,0.53170721,105630.0,105620.0,0.42103257]
[1749342541495,0.54117367,105630.0,105620.0,0.42103257]
[1749342543118,0.54117367,105630.0,105620.0,0.34546338]
[1749342547356,0.55064031,105630.0,105620.0,0.34546338]
[1749342547557,0.54117367,105630.0,105620.0,0.34546338]
[1749342548601,0.55064022,105630.0,105620.0,0.34546338]
[1749342551757,0.54117367,105630.0,105620.0,0.34546338]
[1749342552375,0.55064022,105630.0,105620.0,0.34546338]
[1749342553144,0.54117367,105630.0,105620.0,0.34546338]
[1749342553356,0.55064031,105630.0,105620.0,0.34546338]
[1749342554159,0.54117367,105630.0,105620.0,0.34546338]
[1749342554394,0.55064022,105630.0,105620.0,0.34546338]
[1749342558364,0.54117367,105630.0,105620.0,0.34546338]
[1749342559065,0.55064031,105630.0,105620.0,0.34546338]
[1749342559293,0.54117367,105630.0,105620.0,0.34546338]
[1749342559509,0.55064031,105630.0,105620.0,0.34546338]
[1749342559946,0.55064022,105630.0,105620.0,0.34546338]
[1749342560155,0.49380112,105630.0,105620.0,0.42103257]
[1749342561022,0.47486811,105630.0,105620.0,0.42103257]
[1749342561662,0.47486811,105630.0,105620.0,0.42991359]
[1749342562103,0.47486811,105630.0,105620.0,0.42103257]
[1749342562314,0.47486811,105630.0,105620.0,0.42991358]
[1749342563354,0.48433457,105630.0,105620.0,0.42103257]
[1749342563561,0.47486811,105630.0,105620.0,0.42991358]
[1749342565030,0.47486811,105630.0,105620.0,0.42103257]
[1749342565242,0.47486811,105630.0,105620.0,0.42991358]
[1749342566073,0.47486811,105630.0,105620.0,0.42103257]
[1749342566247,0.47486811,105630.0,105620.0,0.42991359]
[1749342566604,0.47486811,105630.0,105620.0,0.42103257]
[1749342567036,0.47486811,105630.0,105620.0,0.42991359]
[1749342568023,0.47486811,105630.0,105620.0,0.71795359]
[1749342568224,0.47486811,105630.0,105620.0,0.70907257]
[1749342568658,0.47486811,105630.0,105620.0,0.7179536]
[1749342569479,0.47486811,105630.0,105620.0,0.70907257]
[1749342569833,0.47486802,105630.0,105620.0,0.70907257]
[1749342570443,0.46540182,105630.0,105620.0,0.7179536]
[1749342571118,0.46540182,105630.0,105620.0,0.70907257]
[1749342571908,0.46540182,105630.0,105620.0,0.72437257]
[1749342572235,0.46540182,105630.0,105620.0,1.03669266]
[1749342572659,0.483124,105630.0,105620.0,1.03669266]
[1749342572867,0.4831244,105630.0,105620.0,1.03669266]
[1749342573265,0.48312416,105630.0,105620.0,1.03669266]
[1749342573468,0.48312409,105630.0,105620.0,1.03669266]
[1749342574331,0.48312404,105630.0,105620.0,1.03669266]
[1749342574738,0.48312121,105630.0,105620.0,1.03669266]
[1749342574944,0.46540182,105630.0,105620.0,1.03669266]
[1749342575170,0.42628527,105630.0,105620.0,1.03669266]
[1749342575799,0.42628549,105630.0,105620.0,1.03669266]
[1749342576209,0.4262855,105630.0,105620.0,1.03669266]
[1749342577569,0.40856588,105630.0,105620.0,1.03669266]
[1749342578544,0.42628243,105630.0,105620.0,1.03669266]
[1749342578745,0.42628243,105630.0,105620.0,0.74067257]
[1749342579168,0.42628212,105630.0,105620.0,0.74067257]
[1749342579375,0.42628249,105630.0,105620.0,0.74067257]
[1749342579575,0.4262825,105630.0,105620.0,0.74067257]
[1749342579781,0.42628251,105630.0,105620.0,0.74067257]
[1749342580465,0.40856588,105630.0,105620.0,0.74067257]
[1749342581739,0.40856588,105630.0,105620.0,0.72437257]
[1749342582579,0.40856588,105630.0,105620.0,0.73957257]
[1749342585857,0.40856588,105630.0,105620.0,0.72437257]
[1749342586733,0.08792,105630.0,105620.0,0.72437257]
[1749342587155,0.08792,105630.0,105620.0,1.02039266]
[1749342588047,0.08792,105630.0,105620.0,1.02239266]
[1749342588500,0.08792,105630.0,105620.0,1.03759266]
[1749342589156,0.08792,105630.0,105620.0,1.03959266]
[1749342590003,0.08792,105630.0,105620.0,1.33561275]
[1749342590248,0.50887592,105640.0,105630.0,0.24874007]
[1749342590455,0.59675606,105640.0,105630.0,0.66389508]
[1749342591121,0.59675606,105640.0,105630.0,0.73946427]
[1749342591553,0.59675605,105640.0,105630.0,0.74905937]
[1749342591768,0.57904,105640.0,105630.0,0.74905937]
[1749342591980,0.59675637,105640.0,105630.0,0.74905937]
[1749342592215,0.59675637,105640.0,105630.0,0.75205937]
[1749342592684,0.59675637,105640.0,105630.0,0.75505937]
[1749342592893,0.59675116,105640.0,105630.0,0.75505937]
[1749342593107,0.59675083,105640.0,105630.0,0.75505937]
[1749342593323,0.59675087,105640.0,105630.0,0.75505937]
[1749342593973,0.57904,105640.0,105630.0,0.75505937]
[1749342594176,0.59674873,105640.0,105630.0,0.75505937]
[1749342594388,0.57904,105640.0,105630.0,0.75505937]
[1749342594608,0.5967488,105640.0,105630.0,0.75505937]
[1749342594833,0.57904,105640.0,105630.0,0.75505937]
[1749342595050,0.59674881,105640.0,105630.0,0.75505937]
[1749342595279,0.59674879,105640.0,105630.0,0.75505937]
[1749342595489,0.57904,105640.0,105630.0,0.75505937]
[1749342601203,0.57904,105640.0,105630.0,1.05107946]
[1749342601408,0.40591521,105640.0,105630.0,1.06562031]
[1749342601587,0.38014662,105640.0,105630.0,0.76971295]
[1749342601838,0.38014662,105640.0,105630.0,0.69403103]
[1749342602261,0.38014662,105640.0,105630.0,0.76971142]
[1749342604142,0.38014662,105640.0,105630.0,1.46971142]
[1749342604626,0.38014662,105640.0,105630.0,1.76573151]
[1749342604821,0.38014662,105640.0,105630.0,1.46971142]
[1749342605017,0.32332376,105640.0,105630.0,1.17369133]
[1749342605165,0.32332376,105640.0,105630.0,1.46971142]
[1749342607626,0.32332376,105640.0,105630.0,1.39403103]
[1749342610329,0.32332376,105640.0,105630.0,0.69403103]
[1749342611323,0.32332376,105640.0,105630.0,0.76971142]
[1749342611510,0.23809003,105640.0,105630.0,0.76971142]
[1749342613514,0.23809003,105640.0,105630.0,1.46971142]
[1749342617176,0.08788,105640.0,105630.0,1.46971142]
[1749342620149,0.03105764,105640.0,105630.0,1.46971142]
[1749342620681,0.03105764,105640.0,105630.0,0.44269133]
[1749342620883,0.03105764,105640.0,105630.0,0.95095103]
[1749342621703,0.03105764,105640.0,105630.0,1.04163142]
[1749342621874,0.03105764,105640.0,105630.0,0.75371142]
[1749342622047,0.03105764,105640.0,105630.0,1.04163142]
[1749342623423,0.03105764,105640.0,105630.0,1.74163142]
[1749342623858,0.03105764,105640.0,105630.0,1.75743142]
[1749342625353,0.02962282,105640.0,105630.0,1.75743142]
[1749342626643,0.02962282,105640.0,105630.0,1.05743142]
[1749342627697,0.02962282,105640.0,105630.0,1.04163142]
[1749342629328,0.02962282,105640.0,105630.0,1.05753142]
[1749342629983,0.02962282,105640.0,105630.0,1.04163142]
[1749342630196,0.0336,105650.0,105640.0,0.21771947]
[1749342630405,0.12144,105650.0,105640.0,0.41256389]
[1749342630812,0.12144,105650.0,105640.0,0.33685439]
[1749342631014,0.12144,105650.0,105640.0,0.41256389]
[1749342631452,0.12144,105650.0,105640.0,0.33685439]
[1749342631651,0.12144,105650.0,105640.0,0.41256389]
[1749342632201,0.12144,105650.0,105640.0,0.33685439]
[1749342632393,0.12144,105650.0,105640.0,0.36597112]
[1749342635178,0.12144,105650.0,105640.0,0.65389112]
[1749342635381,0.12144,105650.0,105640.0,0.72960062]
[1749342639659,0.12144,105650.0,105640.0,0.44168062]
[1749342639861,0.12144,105650.0,105640.0,0.72960062]
[1749342645372,0.10614,105650.0,105640.0,0.72960062]
[1749342653216,0.08984,105650.0,105640.0,0.72960062]
[1749342653419,0.03301534,105650.0,105640.0,0.94991121]
[1749342653852,0.03301534,105650.0,105640.0,0.65389112]
[1749342655248,0.90899525,105660.0,105650.0,0.21769885]
[1749342655452,0.99683525,105660.0,105650.0,0.3351159]
[1749342656191,0.99683598,105660.0,105650.0,0.3351159]
[1749342656347,0.99783598,105660.0,105650.0,0.3351159]
[1749342656526,1.00730008,105660.0,105650.0,0.3351159]
[1749342656726,0.98957557,105660.0,105650.0,0.3351159]
[1749342656930,1.00730028,105660.0,105650.0,0.3351159]
[1749342657130,1.00730024,105660.0,105650.0,0.3351159]
[1749342657316,1.00830024,105660.0,105650.0,0.3351159]
[1749342658187,0.99057557,105660.0,105650.0,0.3351159]
[1749342658553,1.00830265,105660.0,105650.0,0.3351159]
[1749342659119,1.00830257,105660.0,105650.0,0.3351159]
[1749342659459,1.00830306,105660.0,105650.0,0.3351159]
[1749342659660,1.00830428,105660.0,105650.0,0.3351159]
[1749342659864,1.00830467,105660.0,105650.0,0.3351159]
[1749342660061,1.0083044,105660.0,105650.0,0.3351159]
[1749342660275,0.99884035,105660.0,105650.0,0.3351159]
[1749342660687,0.99884017,105660.0,105650.0,0.3351159]
[1749342660882,0.90153621,105660.0,105650.0,0.3351159]
[1749342661088,0.98933621,105660.0,105650.0,0.3351159]
[1749342661337,0.99880029,105660.0,105650.0,0.3351159]
[1749342661694,0.98933619,105660.0,105650.0,0.3351159]
[1749342661910,0.98107152,105660.0,105650.0,0.3351159]
[1749342662121,0.99880022,105660.0,105650.0,0.3351159]
[1749342662839,0.99880102,105660.0,105650.0,0.3351159]
[1749342663277,0.98107152,105660.0,105650.0,0.29724326]
[1749342663477,0.99880109,105660.0,105650.0,0.29724326]
[1749342664155,0.98933722,105660.0,105650.0,0.29724326]
[1749342664565,0.98933714,105660.0,105650.0,0.29724326]
[1749342664776,0.97160765,105660.0,105650.0,0.29724326]
[1749342665101,0.97987312,105660.0,105650.0,0.29724326]
[1749342665305,0.98933701,105660.0,105650.0,0.29724326]
[1749342666327,0.97160756,105660.0,105650.0,0.29724326]
[1749342666683,0.97987306,105660.0,105650.0,0.29724326]
[1749342666846,0.95630738,105660.0,105650.0,0.29724326]
[1749342667084,0.96457306,105660.0,105650.0,0.29724326]
[1749342667485,0.97403675,105660.0,105650.0,0.29724326]
[1749342667951,0.94807297,105660.0,105650.0,0.39364274]
[1749342668184,0.93860947,105660.0,105650.0,0.39364274]
[1749342668424,0.92088,105660.0,105650.0,0.39364274]
[1749342668853,0.93861016,105660.0,105650.0,0.39364274]
[1749342669512,0.93860714,105660.0,105650.0,0.39364274]
[1749342669933,0.93860731,105660.0,105650.0,0.39364274]
[1749342670140,0.93860732,105660.0,105650.0,0.42504274]
[1749342670348,0.93860734,105660.0,105650.0,0.40874274]
[1749342670535,0.94807076,105660.0,105650.0,0.39364274]
[1749342670806,0.93860725,105660.0,105650.0,0.39364274]
[1749342671031,0.94807085,105660.0,105650.0,0.39364274]
[1749342671243,0.93860722,105660.0,105650.0,0.39364274]
[1749342671483,0.93860731,105660.0,105650.0,0.39364274]
[1749342671766,0.93860734,105660.0,105650.0,0.39364274]
[1749342672004,0.92088,105660.0,105650.0,0.39364274]
[1749342672249,0.93860741,105660.0,105650.0,0.39364274]
[1749342672470,0.92088,105660.0,105650.0,0.39364274]
[1749342672680,0.4298,105660.0,105650.0,0.39364274]
[1749342673419,0.4298,105660.0,105650.0,0.39362573]
[1749342691983,0.4298,105660.0,105650.0,0.40872573]
[1749342692408,0.4298,105660.0,105650.0,0.39362573]
[1749342692826,0.4288,105660.0,105650.0,0.39362573]
[1749342693033,0.4298,105660.0,105650.0,0.39362573]
[1749342693434,0.4288,105660.0,105650.0,0.39362573]
[1749342693657,0.4278,105660.0,105650.0,0.39362573]
[1749342694036,0.4288,105660.0,105650.0,0.39362573]
[1749342694578,0.4278,105660.0,105650.0,0.33681676]
[1749342704247,0.4278,105660.0,105650.0,0.41252626]
[1749342713253,0.4278,105660.0,105650.0,0.70032626]
[1749342723204,0.0878,105660.0,105650.0,1.02694635]
[1749342723433,0.85081208,105670.0,105660.0,0.24827826]
[1749342723656,0.92084,105670.0,105660.0,0.68961757]
[1749342724082,0.92084,105670.0,105660.0,0.39359748]
[1749342724289,0.94670279,105670.0,105660.0,0.68139784]
[1749342724498,0.9467027,105670.0,105660.0,0.69086153]
[1749342724702,0.93871912,105670.0,105660.0,0.69086153]
[1749342724906,0.94818173,105670.0,105660.0,0.69086153]
[1749342725606,0.94918173,105670.0,105660.0,0.69086153]
[1749342727501,0.83555912,105670.0,105660.0,1.01748162]
[1749342727749,0.92331912,105670.0,105660.0,1.01748162]
[1749342728369,0.92331912,105670.0,105660.0,1.01744162]
[1749342728510,0.92331912,105670.0,105660.0,0.72142153]
[1749342733167,0.92331912,105670.0,105660.0,0.70602153]
[1749342734534,0.92331912,105670.0,105660.0,0.72142153]
[1749342736494,0.92331912,105670.0,105660.0,0.70602153]
[1749342737413,0.92331912,105670.0,105660.0,0.72132153]
[1749342737744,0.92331912,105670.0,105660.0,0.66452022]
[1749342738639,0.92131912,105670.0,105660.0,0.66452022]
[1749342739271,0.58131912,105670.0,105660.0,0.66452022]
[1749342739970,0.58131912,105670.0,105660.0,0.66449727]
[1749342740552,0.58131912,105670.0,105660.0,0.63399727]
[1749342740751,0.58131912,105670.0,105660.0,0.64999727]
[1749342741106,0.58131912,105670.0,105660.0,0.63399727]
[1749342741681,0.58131912,105670.0,105660.0,0.63395727]
[1749342747141,0.58131912,105670.0,105660.0,0.92997736]
[1749342747481,0.58131912,105670.0,105660.0,0.63395727]
[1749342748775,0.58131912,105670.0,105660.0,0.70966677]
[1749342750913,0.49355912,105670.0,105660.0,0.70966677]
[1749342751046,0.58131912,105670.0,105660.0,0.70966677]
[1749342758439,0.09023912,105670.0,105660.0,0.71008291]
[1749342764662,0.03342566,105670.0,105660.0,0.71008291]
[1749342764875,0.03342566,105670.0,105660.0,0.63437341]
[1749342768377,0.90962147,105680.0,105670.0,0.21765792]
[1749342768519,0.97855349,105680.0,105670.0,0.33503638]
[1749342768725,0.96245358,105680.0,105670.0,0.34449917]
[1749342768942,0.95417969,105680.0,105670.0,0.34449917]
[1749342769168,0.97191552,105680.0,105670.0,0.34449917]
[1749342769377,0.97191561,105680.0,105670.0,0.34449917]
[1749342769996,0.94471779,105680.0,105670.0,0.34449917]
[1749342770161,0.96345306,105680.0,105670.0,0.34449917]
[1749342770363,0.96345305,105680.0,105670.0,0.34449917]
[1749342770564,0.96345301,105680.0,105670.0,0.34449917]
[1749342770761,0.94571779,105680.0,105670.0,0.34449917]
[1749342771169,0.94671779,105680.0,105670.0,0.34449917]
[1749342771997,0.93725598,105680.0,105670.0,0.34449917]
[1749342772194,0.94671779,105680.0,105670.0,0.34449917]
[1749342772330,0.9467177,105680.0,105670.0,0.34449917]
[1749342773523,0.9618177,105680.0,105670.0,0.34449917]
[1749342773741,0.97127951,105680.0,105670.0,0.3449153]
[1749342774746,0.97127951,105680.0,105670.0,0.30704211]
[1749342775070,0.97127951,105680.0,105670.0,0.3070421]
[1749342776245,0.85205951,105680.0,105670.0,0.3070421]
[1749342776443,0.08985598,105680.0,105670.0,0.83913804]
[1749342776882,0.00464768,105680.0,105670.0,0.83913804]
[1749342777083,0.00464768,105680.0,105670.0,0.83913803]
[1749342777369,0.002,105690.0,105680.0,0.21763706]
[1749342777572,0.04306091,105690.0,105680.0,0.43175076]
[1749342777794,0.130781,105690.0,105680.0,0.71939076]
[1749342777959,0.12132,105690.0,105680.0,0.71939076]
[1749342778376,0.13078091,105690.0,105680.0,0.71939076]
[1749342778583,0.12132,105690.0,105680.0,0.71939076]
[1749342778861,0.13078091,105690.0,105680.0,0.71939076]
[1749342779385,0.13078091,105690.0,105680.0,0.71939075]
[1749342779591,0.12132,105690.0,105680.0,0.71939075]
[1749342779814,0.13078091,105690.0,105680.0,0.71939075]
[1749342780024,0.14970327,105690.0,105680.0,0.61352937]
[1749342780212,0.14970327,105690.0,105680.0,0.56622206]
[1749342780412,0.14970327,105690.0,105680.0,0.57568396]
[1749342780614,0.140242,105690.0,105680.0,0.57568396]
[1749342780834,0.14970327,105690.0,105680.0,0.57568396]
[1749342781251,0.140242,105690.0,105680.0,0.57568396]
[1749342781457,0.14970327,105690.0,105680.0,0.57568396]
[1749342781776,0.140242,105690.0,105680.0,0.57568396]
[1749342782007,0.14970318,105690.0,105680.0,0.57568396]
[1749342782417,0.140242,105690.0,105680.0,0.57568396]
[1749342783045,0.14970327,105690.0,105680.0,0.57568396]
[1749342783446,0.140242,105690.0,105680.0,0.57568396]
[1749342783897,0.14970318,105690.0,105680.0,0.57568396]
[1749342785522,0.140242,105690.0,105680.0,0.57568396]
[1749342786870,0.140242,105690.0,105680.0,0.63245326]
[1749342787075,0.140242,105690.0,105680.0,0.63245325]
[1749342787691,0.09918091,105690.0,105680.0,0.63245325]
[1749342787897,0.108642,105690.0,105680.0,0.63245325]
[1749342789302,0.09918091,105690.0,105680.0,0.63245325]
[1749342790304,0.108642,105690.0,105680.0,0.63245325]
[1749342790504,0.08972,105690.0,105680.0,0.63245325]
[1749342793081,0.08968,105690.0,105680.0,1.25769028]
[1749342793293,0.02341248,105690.0,105680.0,1.34794062]
[1749342793497,0.57864,105700.0,105690.0,0.23215732]
[1749342793723,0.57864,105700.0,105690.0,0.67908844]
[1749342793910,0.57864,105700.0,105690.0,0.73575288]
[1749342794100,0.57864,105700.0,105690.0,0.73575162]
[1749342794302,0.57864,105700.0,105690.0,0.43973153]
[1749342794527,0.57864,105700.0,105690.0,0.73575162]
[1749342794702,0.57864,105700.0,105690.0,0.43973153]
[1749342795131,0.57864,105700.0,105690.0,0.73775162]
[1749342795581,0.57864,105700.0,105690.0,0.73975161]
[1749342795788,0.57864,105700.0,105690.0,1.43975161]
[1749342797451,0.57864,105700.0,105690.0,1.41705613]
[1749342797676,0.57864,105700.0,105690.0,1.43969629]
[1749342798706,0.57864,105700.0,105690.0,1.43969628]
[1749342799386,0.57864,105700.0,105690.0,1.47742199]
[1749342800595,0.57864,105700.0,105690.0,0.77742199]
[1749342803476,0.57864,105700.0,105690.0,0.73969628]
[1749342804865,0.57864,105700.0,105690.0,0.73969627]
[1749342808100,0.57864,105700.0,105690.0,0.44367618]
[1749342808321,0.57864,105700.0,105690.0,0.73969627]
[1749342809377,0.49096,105700.0,105690.0,0.73969627]
[1749342809570,0.57864,105700.0,105690.0,0.73969627]
[1749342810734,0.57864,105700.0,105690.0,1.43969627]
[1749342814232,0.08768,105700.0,105690.0,1.43969627]
[1749342814677,0.08768,105700.0,105690.0,1.38303309]
[1749342814892,0.08768,105700.0,105690.0,1.43966008]
[1749342815326,0.08768,105700.0,105690.0,1.38303309]
[1749342815741,0.08768,105700.0,105690.0,1.38303308]
[1749342818098,0.0178,105710.0,105700.0,0.21759587]
[1749342818336,0.10544,105710.0,105700.0,0.71895424]
[1749342820351,0.10544,105710.0,105700.0,0.68118516]
[1749342820561,0.10544,105710.0,105700.0,0.69143667]
[1749342821155,0.08964,105710.0,105700.0,0.98745676]
[1749342821359,0.08964,105710.0,105700.0,0.93080314]
[1749342821831,0.08964,105710.0,105700.0,1.00651264]
[1749342822032,0.08964,105710.0,105700.0,0.9587976]
[1749342822173,0.08881856,105710.0,105700.0,0.9587976]
[1749342822368,0.08881856,105710.0,105700.0,0.95879759]
[1749342822569,0.08881856,105710.0,105700.0,1.03450709]
[1749342826020,0.00117856,105710.0,105700.0,1.03450709]
[1749342826174,0.08881856,105710.0,105700.0,1.03450709]
[1749342827398,0.00117856,105710.0,105700.0,1.03450709]
[1749342827598,0.08881856,105710.0,105700.0,1.03456827]
[1749342830952,0.08881856,105710.0,105700.0,1.03456826]
[1749342832558,0.00117856,105710.0,105700.0,1.03456826]
[1749342832759,0.08740734,105710.0,105700.0,1.03456826]
[1749342832949,0.54151637,105720.0,105710.0,0.21757529]
[1749342833135,0.54151637,105720.0,105710.0,0.29744045]
[1749342833136,0.6198341,105720.0,105710.0,0.29744045]
[1749342834065,0.6208341,105720.0,105710.0,0.29744045]
[1749342835180,0.6218341,105720.0,105710.0,0.29744045]
[1749342835629,0.6218341,105720.0,105710.0,0.27473911]
[1749342835794,0.6218341,105720.0,105710.0,0.29743651]
[1749342836731,0.63129242,105720.0,105710.0,0.29743651]
[1749342837757,0.6218341,105720.0,105710.0,0.29743651]
[1749342838380,0.61237596,105720.0,105710.0,0.29743651]
[1749342838509,0.6218341,105720.0,105710.0,0.29743651]
[1749342838741,0.63129242,105720.0,105710.0,0.29743651]
[1749342838945,0.63129233,105720.0,105710.0,0.29743651]
[1749342840520,0.62183419,105720.0,105710.0,0.29743651]
[1749342841257,0.49293596,105720.0,105710.0,0.76549189]
[1749342841490,0.57111167,105720.0,105710.0,0.83069443]
[1749342841704,0.00460239,105720.0,105710.0,0.83069442]
[1749342841910,0.002,105730.0,105720.0,0.21755472]
[1749342842115,0.08968785,105730.0,105720.0,0.95222769]
[1749342842320,0.08968785,105730.0,105720.0,0.95222768]
[1749342842562,0.08968785,105730.0,105720.0,1.00892109]
[1749342842963,0.00204785,105730.0,105720.0,0.712901]
[1749342843168,0.08968785,105730.0,105720.0,0.712901]
[1749342843371,0.08968785,105730.0,105720.0,0.714901]
[1749342844135,0.08968785,105730.0,105720.0,0.71490099]
[1749342844340,0.08968785,105730.0,105720.0,0.71690099]
[1749342845295,0.08968785,105730.0,105720.0,0.70150099]
[1749342847725,0.08968785,105730.0,105720.0,0.71690099]
[1749342847959,0.08968785,105730.0,105720.0,0.70150099]
[1749342848188,0.08968785,105730.0,105720.0,0.70150098]
[1749342851474,0.08968785,105730.0,105720.0,1.01292107]
[1749342851748,0.08964785,105730.0,105720.0,0.95622766]
[1749342851885,0.00204785,105730.0,105720.0,1.73193716]
[1749342852087,0.08964785,105730.0,105720.0,1.746478]
[1749342852674,0.08964785,105730.0,105720.0,1.74647799]
[1749342853730,0.08964785,105730.0,105720.0,1.74647798]
[1749342855428,0.08964785,105730.0,105720.0,1.74439858]
[1749342857847,0.002,105750.0,105720.0,2.30994291]
[1749342858064,0.002,105750.0,105740.0,1.71384998]
[1749342858272,0.0976,105780.0,105770.0,0.23199272]
[1749342858483,0.0976,105780.0,105770.0,0.66155615]
[1749342858920,0.09807892,105780.0,105770.0,0.66155615]
[1749342859295,0.09807892,105780.0,105770.0,0.68979167]
[1749342859503,0.12857892,105780.0,105770.0,0.33642193]
[1749342859704,0.08401479,105780.0,105770.0,0.30818641]
[1749342860040,0.37959369,105780.0,105770.0,0.0236974]
[1749342860246,0.33655746,105780.0,105770.0,0.19008953]
[1749342860598,0.32710406,105780.0,105770.0,0.19008953]
[1749342861210,0.32710406,105780.0,105770.0,0.001]
[1749342863847,0.32710406,105780.0,105770.0,0.19008953]
[1749342864099,0.31765057,105780.0,105770.0,0.001]
[1749342864850,0.31765057,105780.0,105770.0,0.19008953]
[1749342865275,0.32710397,105780.0,105770.0,0.19008953]